fUSD/lending_fUSD_20260427
["ID","MTS","AMOUNT","RATE_DAILY","PERIOD"]
[421198469,1777233041900,-224.0,0.00024,2]
[421198470,1777233041909,-158.0,0.00024884,5]
[421198471,1777233041919,-153.0,0.00024884,5]
[421198472,1777233041928,-1048.0,0.00024963,2]
[421198473,1777233041937,-416.0,0.00024963,2]
[421198474,1777233041947,-2431.586,0.00024963,2]
[421198475,1777233041956,-221.0,0.00025,2]
[421198476,1777233041965,-220.0,0.00025,2]
[421198477,1777233041975,-233.0,0.00025,2]
[421198478,1777233041985,-707.3,0.00025006,2]
[421198479,1777233041994,-3728.4705061,0.00025203,2]
[421198480,1777233042004,-159.63,0.00025205,2]
[421198481,1777233042014,-221.15613374,0.000257,2]
[421198482,1777233042023,-221.15613372,0.000257,2]
[421198483,1777233042032,-3954.6221901,0.0002582,2]
[421198484,1777233042042,-5516.11,0.000259,7]
[421198485,1777233042051,-162.25551732,0.000259,7]
[421198486,1777233042060,-8725.90446628,0.00026947,2]
[421198487,1777233042070,-707.3,0.00027148,2]
[421198488,1777233042084,-5000.0,0.00027197,2]
[421198489,1777233042093,-311.86,0.000272,2]
[421198490,1777233042103,-220.0,0.00027297,5]
[421198491,1777233042113,-286.22276445,0.00027397,2]
[421198492,1777233042123,-1500.0,0.00027397,2]
[421198493,1777233042133,-14629.4,0.00027397,10]
[421198494,1777233042143,-1282.0,0.00027397,15]
[421198495,1777233042152,-797.95,0.000274,14]
[421198496,1777233042162,-305.254436,0.0002744,14]
[421198497,1777233042171,-1282.0,0.00027671,15]
[421198498,1777233042181,-3728.4705061,0.00027752,2]
[421198499,1777233042191,-1282.0,0.00027945,15]
[421198500,1777233042201,-1048.0,0.00027963,2]
[421198501,1777233042211,-150.45,0.00028,2]
[421198502,1777233042220,-150.45,0.00028,2]
[421198503,1777233042230,-150.45,0.00028,2]
[421198504,1777233042240,-1282.0,0.00028219,15]
[421198505,1777233042249,-197.10413803,0.00028269,2]
[421198506,1777233042259,-156.27909938,0.00028493,2]
[421198507,1777233042268,-156.26909944,0.00028493,30]
[421198508,1777233042279,-1282.0,0.00028493,15]
[421198509,1777233042288,-1282.0,0.00028767,15]
[421198510,1777233042298,-150.0,0.00028854,30]
[421198511,1777233042308,-1282.0,0.00029041,15]
[421198512,1777233042318,-152.0,0.00029048,7]
[421198513,1777233042328,-152.0,0.00029057,30]
[421198514,1777233042337,-152.0,0.00029077,7]
[421198515,1777233042347,-152.0,0.00029086,30]
[421198516,1777233042358,-307.0,0.000291,2]
[421198517,1777233042368,-313.0,0.000291,2]
[421198518,1777233042378,-707.3,0.0002929,2]
[421198519,1777233042388,-230.540121,0.00029302,14]
[421198520,1777233042398,-1282.0,0.00029315,15]
[421198521,1777233042409,-797.95,0.000294,14]
[421198522,1777233042420,-504.0,0.00029877,2]
[421198523,1777233042429,-529.0,0.00029877,2]
[421198524,1777233042439,-5516.11,0.000299,7]
[421198525,1777233042450,-150.0,0.0003,30]
[421198526,1777233042460,-3728.4705061,0.00030302,2]
[421198527,1777233042477,-150.0,0.00030615,30]
[421198528,1777233042488,-1048.0,0.00030963,2]
[421198529,1777233042499,-504.0,0.00031162,3]
[421198530,1777233042509,-707.3,0.00031432,2]
[421198531,1777233042520,-154.0,0.00031507,30]
[421198532,1777233042530,-155.0,0.00031507,30]
[421198533,1777233042541,-153.0,0.00031507,30]
[421198534,1777233042551,-202.0,0.00031507,30]
[421198535,1777233042561,-213.0,0.00031507,30]
[421198536,1777233042573,-158.0,0.00031507,30]
[421198537,1777233042583,-224.0,0.00031507,30]
[421198538,1777233042593,-154.0,0.00031508,30]
[421198539,1777233042603,-155.0,0.00031508,30]
[421198540,1777233042613,-153.0,0.00031508,30]
[421198541,1777233042623,-152.0,0.00032139,3]
[421198542,1777233042632,-797.95,0.000322,14]
[421198543,1777233042643,-150.0,0.00032219,2]
[421198544,1777233042652,-500.0,0.00032256,60]
[421198545,1777233042662,-500.0,0.00032256,60]
[421198547,1777233042674,-500.0,0.00032256,60]
[421198548,1777233042684,-500.0,0.00032256,60]
[421198549,1777233042694,-500.0,0.00032256,60]
[421198550,1777233042707,-500.0,0.00032256,60]
[421198551,1777233042717,-500.0,0.00032256,60]
[421198552,1777233042727,-500.0,0.00032256,60]
[421198553,1777233042737,-399.7914889,0.00032256,60]
[421198554,1777233042747,-500.0,0.00032256,60]
[421198555,1777233042756,-610.972142,0.00032256,60]
[421198556,1777233042767,-173.4365373,0.00032256,60]
[421198557,1777233042776,-5516.11,0.000323,7]
[421198558,1777233042787,-150.0,0.00032376,30]
[421198560,1777233042797,-504.0,0.00032447,4]
[421198562,1777233042807,-161.0,0.00032507,30]
[421198563,1777233042817,-155.0,0.00032507,30]
[421198566,1777233042827,-153.0,0.00032507,30]
[421198568,1777233042837,-202.0,0.00032507,30]
[421198570,1777233042847,-213.0,0.00032507,30]
[421198572,1777233042857,-164.0,0.00032507,30]
[421198574,1777233042867,-224.0,0.00032507,30]
[421198576,1777233042877,-154.0,0.00032508,30]
[421198578,1777233042887,-155.0,0.00032508,30]
[421198580,1777233042897,-565.0,0.00032877,120]
[421198582,1777233042907,-218.51,0.00032877,120]
[421198584,1777233042918,-1095.309647,0.00033423,120]
[421198587,1777233042932,-159.63,0.00033425,30]
[421198589,1777233042942,-155.0,0.00033507,30]
[421198591,1777233042952,-153.0,0.00033507,30]
[421198592,1777233042962,-202.0,0.00033507,30]
[421198593,1777233042972,-213.0,0.00033507,30]
[421198594,1777233042983,-224.0,0.00033507,30]
[421198595,1777233042993,-154.0,0.00033508,30]
[421198596,1777233043004,-155.0,0.00033508,30]
[421198597,1777233043014,-218.51,0.00033562,120]
[421198598,1777233043026,-707.3,0.00033574,5]
[421198599,1777233043037,-157.5,0.00033671,2]
[421198600,1777233043047,-797.95,0.000337,14]
[421198601,1777233043059,-504.0,0.00033732,6]
[421198602,1777233043069,-150.0,0.0003383,2]
[421198603,1777233043080,-213.65,0.00034,2]
[421198604,1777233043090,-499.99749999,0.00034023,7]
[421198605,1777233043099,-156.34,0.00034137,30]
[421198606,1777233043110,-250.0,0.000344,7]
[421198607,1777233043119,-218.51,0.00034466,120]
[421198608,1777233043130,-155.0,0.00034507,30]
[421198609,1777233043140,-153.0,0.00034507,30]
[421198610,1777233043151,-202.0,0.00034507,30]
[421198611,1777233043164,-213.0,0.00034507,30]
[421198612,1777233043175,-224.0,0.00034507,30]
[421198613,1777233043184,-154.0,0.00034508,30]
[421198614,1777233043194,-155.0,0.00034508,30]
[421198615,1777233043204,-1500.0,0.00034795,2]
[421198616,1777233043214,-504.0,0.00035018,7]
[421198617,1777233043224,-2000.0,0.00035023,120]
[421198618,1777233043237,-311.86,0.000351,2]
[421198619,1777233043248,-1577.0,0.00035172,11]
[421198620,1777233043260,-218.51,0.00035233,120]
[421198621,1777233043271,-3873.566,0.00035271,41]
[421198622,1777233043281,-279.572,0.00035271,41]
[421198623,1777233043291,-155.0,0.00035507,30]
[421198624,1777233043301,-153.0,0.00035507,30]
[421198625,1777233043311,-202.0,0.00035507,30]
[421198626,1777233043320,-213.0,0.00035507,30]
[421198627,1777233043331,-224.0,0.00035507,30]
[421198628,1777233043341,-154.0,0.00035508,30]
[421198629,1777233043350,-157.0,0.00035508,30]
[421198630,1777233043360,-150.0,0.00035522,2]
[421198631,1777233043370,-707.3,0.00035716,7]
[421198632,1777233043380,-195.43,0.00035898,30]
[421198633,1777233043390,-218.51,0.00036219,120]
[421198634,1777233043401,-504.0,0.00036303,9]
[421198635,1777233043410,-155.0,0.00036507,30]
[421198636,1777233043421,-153.0,0.00036507,30]
[421198637,1777233043433,-202.0,0.00036507,30]
[421198638,1777233043444,-213.0,0.00036507,30]
[421198639,1777233043454,-224.0,0.00036507,30]
[421198640,1777233043465,-154.0,0.00036508,30]
[421198641,1777233043476,-218.51,0.00037068,120]
[421198642,1777233043487,-150.0,0.00037298,2]
[421198643,1777233043498,-161.0,0.00037507,30]
[421198644,1777233043507,-153.0,0.00037507,30]
[421198645,1777233043518,-202.0,0.00037507,30]
[421198646,1777233043527,-213.0,0.00037507,30]
[421198647,1777233043538,-224.0,0.00037507,30]
[421198648,1777233043549,-154.0,0.00037508,30]
[421198649,1777233043559,-504.0,0.00037588,10]
[421198650,1777233043569,-234.51,0.00037659,30]
[421198651,1777233043580,-218.51,0.00037808,120]
[421198652,1777233043591,-707.3,0.00037858,30]
[421198653,1777233043601,-5000.0,0.00037999,2]
[421198654,1777233043622,-2000.0,0.00038,38]
[421198655,1777233043634,-191.72,0.00038,15]
[421198656,1777233043643,-1797.86395902,0.00038,3]
[421198657,1777233043653,-1086.82,0.00038034,30]
[421198658,1777233043664,-328.22,0.00038034,30]
[421198659,1777233043676,-558.2,0.00038034,30]
[421198660,1777233043687,-12497.52,0.00038034,30]
[421198661,1777233043697,-275.72,0.00038034,30]
[421198662,1777233043707,-1400.0,0.00038082,21]
[421198663,1777233043717,-5516.11,0.000381,7]
[421198664,1777233043728,-500.0,0.00038356,21]
[421198665,1777233043738,-426.57035969,0.00038356,21]
[421198666,1777233043748,-156.26909944,0.00038356,30]
[421198667,1777233043758,-391.35398622,0.00038356,2]
[421198668,1777233043768,-1162.77,0.00038356,14]
[421198669,1777233043779,-1279.38,0.00038356,14]
[421198670,1777233043789,-311.86,0.000385,2]
[421198671,1777233043800,-172.0988855,0.00038548,30]
[421198672,1777233043810,-797.94,0.000386,14]
[421198673,1777233043820,-520.0,0.0003863,120]
[421198674,1777233043831,-218.51,0.0003863,120]
[421198675,1777233043842,-172.0988855,0.00038685,30]
[421198676,1777233043851,-250.0,0.000387,7]
[421198677,1777233043862,-404.78579768,0.00038709,2]
[421198678,1777233043872,-1090.07406018,0.00038709,2]
[421198679,1777233043882,-1124.14944416,0.00038709,2]
[421198680,1777233043892,-360.80369714,0.00038709,2]
[421198681,1777233043903,-3211.06107775,0.000388,2]
[421198682,1777233043914,-172.0988855,0.00038849,30]
[421198683,1777233043924,-1115.157653,0.00038852,30]
[421198684,1777233043934,-504.0,0.00038873,12]
[421198685,1777233043945,-476.0,0.00038902,120]
[421198686,1777233043955,-1400.0,0.00038904,21]
[421198687,1777233043965,-200.0,0.00039,16]
[421198688,1777233043976,-797.95,0.00039,14]
[421198689,1777233043986,-172.0988855,0.00039014,30]
[421198690,1777233043997,-152.0,0.00039074,4]
[421198691,1777233044007,-172.0988855,0.00039151,30]
[421198692,1777233044018,-181.16242798,0.00039151,2]
[421198693,1777233044029,-150.0,0.00039163,2]
[421198694,1777233044039,-500.0,0.00039178,21]
[421198695,1777233044051,-5516.11,0.000392,7]
[421198696,1777233044062,-5800.0,0.00039243,14]
[421198697,1777233044077,-500.0,0.0003925,15]
[421198698,1777233044088,-5800.0,0.00039251,14]
[421198699,1777233044099,-172.0988855,0.00039315,30]
[421198700,1777233044109,-151.0,0.0003934,14]
[421198701,1777233044119,-151.0,0.0003934,14]
[421198702,1777233044129,-273.6,0.0003942,30]
[421198703,1777233044139,-25000.0,0.00039443,15]
[421198704,1777233044151,-25000.0,0.00039452,15]
[421198705,1777233044162,-10357.75211021,0.00039452,15]
[421198706,1777233044173,-218.51,0.00039452,120]
[421198707,1777233044183,-1162.77,0.00039468,14]
[421198708,1777233044193,-1279.38,0.00039468,14]
[421198709,1777233044205,-172.0988855,0.00039479,30]
[421198710,1777233044216,-775.0,0.0003959,30]
[421198711,1777233044227,-11131.91142073,0.0003961,2]
[421198712,1777233044240,-172.0988855,0.00039616,30]
[421198713,1777233044251,-1295.08,0.00039648,2]
[421198714,1777233044262,-200.0,0.0003968,20]
[421198715,1777233044274,-797.94,0.000397,14]
[421198716,1777233044284,-500.0,0.0003972,120]
[421198717,1777233044296,-1400.0,0.00039726,21]
[421198718,1777233044308,-172.0988855,0.00039781,30]
[421198719,1777233044319,-161.0,0.0003988,120]
[421198720,1777233044329,-797.95,0.000399,14]
[421198721,1777233044340,-3218.91885884,0.000399,2]
[421198722,1777233044351,-352.45343224,0.000399,2]
[421198723,1777233044362,-172.0988855,0.00039945,30]
[421198724,1777233044373,-2730.0,0.00039947,120]
[421198725,1777233044385,-500.0,0.0003996,120]
[421198726,1777233044395,-346.0,0.00039979,2]
[421198727,1777233044405,-154.0,0.0003999,120]
[421198728,1777233044416,-157.18181311,0.00039998,3]
[421198729,1777233044427,-174.61919141,0.00039999,20]
[421198730,1777233044438,-500.0,0.00039999,20]
[421198731,1777233044450,-151.0,0.00039999,20]
[421198732,1777233044461,-578.20924308,0.00039999,20]
[421198733,1777233044472,-1191.11104075,0.00039999,20]
[421198734,1777233044483,-7965.41053268,0.00039999,20]
[421198735,1777233044494,-200.0,0.00039999,20]
[421198736,1777233044505,-601.3376128,0.00039999,20]
[421198737,1777233044515,-500.0,0.00039999,20]
[421198738,1777233044530,-151.0,0.00039999,20]
[421198739,1777233044541,-1235.18214925,0.00039999,20]
[421198740,1777233044551,-200.0,0.00039999,20]
[421198741,1777233044561,-500.0,0.00039999,20]
[421198742,1777233044571,-715.97350309,0.00039999,20]
[421198743,1777233044582,-200.0,0.00039999,20]
[421198745,1777233044592,-623.58710448,0.00039999,20]
[421198747,1777233044602,-500.0,0.00039999,20]
[421198749,1777233044612,-151.0,0.00039999,20]
[421198750,1777233044623,-1280.88388878,0.00039999,20]
[421198751,1777233044633,-200.0,0.00039999,20]
[421198752,1777233044642,-500.0,0.00039999,20]
[421198753,1777233044652,-200.0,0.00039999,20]
[421198754,1777233044661,-370.07782404,0.00039999,20]
[421198755,1777233044671,-500.0,0.00039999,20]
[421198756,1777233044681,-151.0,0.00039999,20]
[421198757,1777233044691,-393.55924075,0.00039999,20]
[421198758,1777233044701,-500.0,0.00039999,20]
[421198759,1777233044710,-200.0,0.00039999,20]
[421198760,1777233044720,-200.0,0.00039999,20]
[421198761,1777233044730,-500.0,0.00039999,20]
[421198762,1777233044740,-151.0,0.00039999,20]
[421198763,1777233044750,-500.0,0.00039999,20]
[421198764,1777233044759,-500.0,0.00039999,20]
[421198765,1777233044769,-151.0,0.00039999,20]
[421198766,1777233044779,-500.0,0.00039999,20]
[421198767,1777233044789,-151.0,0.00039999,20]
[421198768,1777233044799,-500.0,0.00039999,20]
[421198769,1777233044809,-500.0,0.00039999,20]
[421198770,1777233044819,-151.0,0.00039999,20]
[421198771,1777233044829,-500.0,0.00039999,20]
[421198772,1777233044841,-500.0,0.00039999,20]
[421198773,1777233044852,-151.0,0.00039999,20]
[421198774,1777233044862,-500.0,0.00039999,20]
[421198775,1777233044872,-500.0,0.00039999,20]
[421198776,1777233044883,-151.0,0.00039999,20]
[421198777,1777233044894,-500.0,0.00039999,20]
[421198778,1777233044904,-500.0,0.00039999,20]
[421198779,1777233044913,-151.0,0.00039999,20]
[421198780,1777233044925,-500.0,0.00039999,20]
[421198781,1777233044935,-500.0,0.00039999,20]
[421198782,1777233044947,-151.0,0.00039999,20]
[421198783,1777233044958,-500.0,0.00039999,20]
[421198784,1777233044971,-500.0,0.00039999,20]
[421198785,1777233044981,-151.0,0.00039999,20]
[421198786,1777233044992,-500.0,0.00039999,20]
[421198787,1777233045000,-151.0,0.00039999,20]
[421198788,1777233045011,-500.0,0.00039999,20]
[421198789,1777233045021,-174.61919141,0.00039999,20]
[421198790,1777233045031,-500.0,0.00039999,20]
[421198791,1777233045041,-500.0,0.00039999,20]
[421198792,1777233045052,-152.0,0.00039999,20]
[421198793,1777233045063,-500.0,0.00039999,20]
[421198794,1777233045074,-500.0,0.00039999,20]
[421198795,1777233045084,-500.0,0.00039999,20]
[421198796,1777233045094,-500.0,0.00039999,20]
[421198797,1777233045104,-500.0,0.00039999,20]
[421198798,1777233045113,-196.59114265,0.00039999,20]
[421198799,1777233045123,-500.0,0.00039999,20]
[421198800,1777233045133,-500.0,0.00039999,20]
[421198801,1777233045142,-500.0,0.00039999,20]
[421198802,1777233045152,-160.0,0.00039999,20]
[421198803,1777233045161,-500.0,0.00039999,20]
[421198804,1777233045171,-500.0,0.00039999,20]
[421198805,1777233045181,-500.0,0.00039999,20]
[421198806,1777233045191,-500.0,0.00039999,20]
[421198807,1777233045201,-500.0,0.00039999,20]
[421198808,1777233045212,-500.0,0.00039999,20]
[421198809,1777233045221,-500.0,0.00039999,20]
[421198810,1777233045232,-500.0,0.00039999,20]
[421198811,1777233045241,-174.61919141,0.00039999,20]
[421198812,1777233045251,-578.20924308,0.00039999,20]
[421198813,1777233045260,-151.0,0.00039999,20]
[421198814,1777233045270,-174.61919141,0.00039999,20]
[421198815,1777233045281,-151.0,0.00039999,20]
[421198816,1777233045292,-181.08010149,0.00039999,20]
[421198817,1777233045303,-151.0,0.00039999,20]
[421198818,1777233045314,-215.58068717,0.00039999,20]
[421198819,1777233045325,-151.0,0.00039999,20]
[421198820,1777233045337,-1156.41848616,0.00039999,7]
[421198821,1777233045347,-229.92707573,0.00039999,20]
[421198822,1777233045358,-1199.20597015,0.00039999,7]
[421198823,1777233045367,-399.68712177,0.00039999,7]
[421198824,1777233045377,-174.61919141,0.00039999,20]
[421198825,1777233045387,-181.08010149,0.00039999,20]
[421198826,1777233045398,-187.78006525,0.00039999,20]
[421198827,1777233045408,-194.72792766,0.00039999,20]
[421198828,1777233045419,-182.85633666,0.00039999,20]
[421198829,1777233045433,-500.0,0.00039999,15]
[421198830,1777233045444,-500.0,0.00039999,15]
[421198831,1777233045454,-150.0,0.00039999,120]
[421198832,1777233045464,-50000.0,0.0004,40]
[421198833,1777233045476,-500.0,0.0004,21]
[421198834,1777233045486,-150.56,0.0004,15]
[421198835,1777233045495,-150.56,0.0004,15]
[421198836,1777233045506,-150.56,0.0004,15]
[421198837,1777233045516,-150.58,0.0004,15]
[421198838,1777233045527,-161.34,0.0004,15]
[421198839,1777233045537,-5627.30596423,0.0004,2]
[421198840,1777233045549,-325.0,0.0004,7]
[421198841,1777233045559,-32045.71,0.0004,2]
[421198842,1777233045569,-1001.34,0.0004,120]
[421198843,1777233045581,-1000.0,0.0004,120]
[421198844,1777233045591,-1000.0,0.0004,120]
[421198845,1777233045603,-1000.0,0.0004,120]
[421198846,1777233045615,-1100.0,0.0004,15]
[421198847,1777233045624,-23000.0,0.0004,40]
[421198848,1777233045636,-161.0,0.0004,120]
[421198849,1777233045646,-100000.0,0.0004,30]
[421198850,1777233045656,-164.0,0.0004,8]
[421198851,1777233045667,-400.72621841,0.0004,30]
[421198852,1777233045677,-603.62,0.0004,120]
[421198853,1777233045688,-168.0,0.0004,120]
[421198855,1777233045699,-151.0,0.0004,120]
[421198857,1777233045710,-2000.0,0.0004,120]
[421198858,1777233045723,-4171.0,0.0004,30]
[421198859,1777233045733,-1000.0,0.0004,120]
[421198860,1777233045744,-1000.0,0.0004,120]
[421198861,1777233045754,-1000.0,0.0004,120]
[421198862,1777233045764,-932.97,0.0004,120]
[421198863,1777233045774,-2000.0,0.0004,120]
[421198864,1777233045785,-2000.0,0.0004,120]
[421198865,1777233045796,-2000.0,0.0004,120]
[421198866,1777233046207,-2000.0,0.0004,120]
[421198867,1777233046248,-2000.0,0.0004,120]
[421198868,1777233046258,-2000.0,0.0004,120]
[421198869,1777233046268,-2000.0,0.0004,120]
[421198870,1777233046277,-2000.0,0.0004,120]
[421198871,1777233046287,-2000.0,0.0004,120]
[421198872,1777233046297,-1671.94,0.0004,120]
[421198873,1777233046306,-723.86644814,0.0004,2]
[421198874,1777233046315,-942.93728042,0.0004,120]
[421198875,1777233046325,-402.15870401,0.0004,120]
[421198876,1777233046334,-1391.30964962,0.0004,120]
[421198877,1777233046344,-150.0,0.0004,7]
[421198878,1777233046353,-152.86504949,0.0004,7]
[421198879,1777233046362,-20000.0,0.0004,7]
[421198880,1777233046372,-2230.4477687,0.0004,120]
[421198881,1777233046382,-2627.6348361,0.0004,120]
[421198882,1777233046392,-245.6957666,0.0004,120]
[421198883,1777233046401,-2279.20574593,0.0004,120]
[421198884,1777233046410,-367.23282162,0.0004,3]
[421198885,1777233046420,-1631.21152333,0.0004,120]
[421198886,1777233046430,-641.14482513,0.0004,120]
[421198887,1777233046439,-1000.0,0.0004,120]
[421198888,1777233046449,-1599.28580842,0.0004,30]
[421198889,1777233046459,-671.29596087,0.0004,120]
[421198890,1777233046468,-818.84468138,0.0004,3]
[421198891,1777233046478,-179.23570158,0.0004,120]
[421198892,1777233046487,-394.85604212,0.0004,2]
[421198893,1777233046496,-1658.87226542,0.0004,120]
[421198894,1777233046506,-2353.88435684,0.0004,120]
[421198895,1777233046515,-2621.94154227,0.0004,120]
[421198896,1777233046525,-2466.91800741,0.0004,120]
[421198897,1777233046535,-1242.61261987,0.0004,120]
[421198898,1777233046544,-1261.25679554,0.0004,120]
[421198899,1777233046553,-301.31385049,0.0004,2]
[421198900,1777233046563,-967.53321161,0.0004,2]
[421198901,1777233046572,-595.24743487,0.0004,120]
[421198902,1777233046582,-379.51279036,0.0004,120]
[421198904,1777233046591,-288.64306609,0.0004,30]
[421198906,1777233046601,-1589.82122265,0.0004,14]
[421198907,1777233046610,-361.24034553,0.0004,120]
[421198908,1777233046620,-711.28935342,0.0004,120]
[421198909,1777233046629,-182.55225507,0.0004,120]
[421198910,1777233046638,-1617.16469105,0.0004,120]
[421198911,1777233046647,-318.35076425,0.0004,2]
[421198912,1777233046657,-159.81427831,0.0004,120]
[421198913,1777233046666,-1519.75611956,0.0004,120]
[421198914,1777233046675,-230.49248421,0.0004,120]
[421198915,1777233046684,-316.0,0.0004,120]
[421198916,1777233046694,-513.5964057,0.0004,2]
[421198917,1777233046703,-1838.19709,0.0004,10]
[421198918,1777233046713,-500.0,0.0004,120]
[421198919,1777233046722,-250.0,0.0004,90]
[421198920,1777233046732,-1009.0,0.0004,120]
[421198921,1777233046741,-425.67,0.0004,120]
[421198922,1777233046751,-835.97,0.0004,120]
[421198923,1777233046759,-1500.0,0.0004,120]
[421198924,1777233046768,-181.0,0.0004,120]
[421198925,1777233046778,-181.0,0.0004,120]
[421198926,1777233046787,-181.0,0.0004,120]
[421198927,1777233046797,-181.0,0.0004,120]
[421198928,1777233046806,-181.0,0.0004,120]
[421198929,1777233046816,-221.56841937,0.0004,120]
[421198930,1777233046825,-900.0,0.0004,120]
[421198931,1777233046834,-162.71596243,0.0004,14]
[421198932,1777233046844,-349.22225501,0.0004,3]
[421198933,1777233046854,-1196.32471055,0.0004,120]
[421198934,1777233046863,-500.0,0.0004,120]
[421198935,1777233046872,-408.06341881,0.0004,2]
[421198936,1777233046882,-1000.0,0.0004,30]
[421198937,1777233046891,-1000.0,0.0004,30]
[421198938,1777233046901,-1000.0,0.0004,30]
[421198939,1777233046911,-1222.0,0.0004,30]
[421198940,1777233046920,-1000.0,0.0004,30]
[421198941,1777233046930,-1000.0,0.0004,30]
[421198942,1777233046940,-546.0,0.0004,2]
[421198943,1777233046949,-2175.0,0.0004,20]
[421198944,1777233046959,-46000.0,0.0004,120]
[421198945,1777233046968,-3167.25288345,0.0004,120]
[421198946,1777233046977,-200.0,0.0004,16]
[421198947,1777233046988,-2078.96,0.0004,120]
[421198948,1777233046998,-1468.31,0.0004,120]
[421198949,1777233047010,-707.3,0.0004,30]
[421198950,1777233047020,-162.25551732,0.0004,7]
[421198951,1777233047029,-150.0,0.0004,30]
[421198952,1777233047039,-151.184154,0.0004,30]
[421198953,1777233047048,-2000.0,0.0004,120]
[421198954,1777233047058,-151.0,0.0004,30]
[421198955,1777233047068,-430.36,0.0004,120]
[421198956,1777233047087,-821.77,0.0004,120]
[421198957,1777233047098,-2173.36,0.0004,120]
[421198958,1777233047108,-788.53,0.0004,120]
[421198959,1777233047118,-1419.79,0.0004,120]
[421198960,1777233047128,-1651.15,0.0004,120]
[421198961,1777233047139,-2000.0,0.0004,60]
[421198962,1777233047148,-265.09272396,0.0004,2]
[421198963,1777233047159,-265.09272396,0.0004,2]
[421198964,1777233047169,-537.0,0.0004,30]
[421198965,1777233047178,-352.69695613,0.0004,2]
[421198966,1777233047189,-195.21607421,0.00040027,120]
[421198967,1777233047199,-767.12175351,0.00040027,120]
[421198968,1777233047209,-177.79664657,0.00040027,120]
[421198969,1777233047219,-202.55216919,0.00040027,120]
[421198970,1777233047229,-198.30715256,0.00040027,120]
[421198971,1777233047239,-208.31133897,0.00040027,120]
[421198972,1777233047249,-227.87252914,0.00040027,120]
[421198973,1777233047259,-172.0988855,0.00040082,30]
[421198974,1777233047269,-28957.85516411,0.000401,120]
[421198975,1777233047279,-213.65,0.0004011,14]
[421198976,1777233047289,-7851.38,0.00040137,120]
[421198977,1777233047299,-504.0,0.00040158,13]
[421198978,1777233047309,-2000.0,0.00040179,120]
[421198979,1777233047319,-223.81711806,0.0004019,120]
[421198980,1777233047330,-214.3643879,0.00040193,120]
[421198981,1777233047340,-1000000.0,0.000402,120]
[421198982,1777233047350,-528.81903079,0.00040203,109]
[421198983,1777233047359,-1997.67,0.00040212,120]
[421198984,1777233047369,-250.0,0.00040219,90]
[421198985,1777233047379,-181.81837178,0.0004022,120]
[421198986,1777233047388,-500.0,0.00040221,30]
[421198987,1777233047398,-500.0,0.00040221,30]
[421198988,1777233047409,-290.6,0.00040221,30]
[421198989,1777233047421,-216.24,0.00040233,30]
[421198990,1777233047431,-172.0988855,0.00040247,30]
[421198991,1777233047441,-157.18181311,0.00040272,3]
[421198992,1777233047453,-2059.88227622,0.00040272,15]
[421198993,1777233047464,-2059.88227622,0.00040272,15]